[Event "FIDE WCCC G12 2018"]
[Site "Santiago de Compostela"]
[Date "2018.11.14"]
[Round "10"]
[White "Kovacsi, Sara Kata"]
[Black "Karmanova, Olga Dm."]
[Result "0-1"]
[ECO "A88"]
[WhiteElo "1554"]
[BlackElo "1819"]
[Annotator "NA RC"]
[PlyCount "112"]
[EventDate "2018.11.04"]
[EventType "swiss"]
[EventCountry "ESP"]
[SourceTitle "playchess.com"]
[Source "ChessBase"]
[SourceQuality "1"]
[TimeControl "40/5400+30:1800+30"]

{[%evp 15,99,7,30,19,21,-6,56,15,17,15,11,0,66,-35,-12,32767,32767,32767,-153,32767,32767,32767,-228,-223,-198,32767,-120,-129,32767,-164,-100,32767,-89,-108,-98,-111,-51,32767,-75,32767,32767,-137,0,0,32767,0,32767,-137,-148,-107,-132,32767,32767,32767,32767,32767,32767,-289,-325,-356,-406,-478,32767,32767,32767,-228,32767,-272,32767,-301,-319,-406,-447,32767,32767,32767,-477,-506,-490,32767,32767,-1145,-1018,-29984,-29987,-29987]} 1. d4 {[%emt 0:00:00]} f5 {[%emt 0:00:00]} 2. c4 {[%emt 0:00:33]} Nf6 {[%emt 0:00:09]} 3. Nc3 {[%emt 0:01:28]} g6 {[%emt 0:00:17]} 4. Nf3 {[%emt 0:02:01]} Bg7 {[%emt 0:00:37]} 5. g3 {[%emt 0:00:29]} O-O {[%emt 0:01:46]} 6. Bg2 {[%emt 0:00:29]} d6 {[%emt 0:00:52]} 7. O-O {[%emt 0:01:46]} c6 {[%emt 0:01:09]} 8. Qc2 {[%emt 0:02:54]} Na6 {[%emt 0:03:02]} 9. a3 {[%emt 0:00:33] LiveBook: 45 Games} Nh5 {[%emt 0:01:38] A88: Dutch Defence: Leningrad System: 5 Nf3 0-0 6 0-0 d6 7 Nc3 c6} (9... Qe8 10. b4 e5 11. dxe5 dxe5 12. e4 Nxe4 13. Nxe4 fxe4 14. Ng5 Nc7 15. Bxe4 Ne6 16. Nxe6 Bxe6 17. Be3 Qf7 18. Rac1 Bf5 19. Rfe1 {½-½ (19) Safarli,E (2664)-Kuzubov,Y (2632) Nakhchivan 2016}) 10. h3 $146 {[%emt 0:04:49]} ({Predecessor:} 10. b4 e5 11. dxe5 dxe5 12. e4 f4 13. Bb2 g5 14. Rfd1 Qe7 15. Na4 Bf6 16. c5 Nc7 17. Rd6 {1-0 (47) Maksimenko,A (2554)-Haub,T (2476) Odense 2012}) 10... Qc7 {[%emt 0:03:33]} ({Black should try} 10... e5 $11) 11. Rd1 {[%emt 0:05:16]} e5 $1 {[%emt 0:02:07]} 12. e4 {[%emt 0:03:31]} fxe4 {[%emt 0:14:13]} 13. Nxe4 {[%emt 0:04:43]} Bf5 {[%emt 0:18:24]} 14. Qe2 {[%emt 0:08:36]} (14. dxe5 $14 dxe5 15. Be3) 14... Rae8 {[%emt 0:13:28]} 15. d5 {[%emt 0:04:38]} cxd5 {[%emt 0:01:55]} 16. Rxd5 {[%emt 0:03:01]} Bxe4 $1 {[%emt 0:00:56]} 17. Qxe4 {[%emt 0:01:00]} Nf6 {[%emt 0:01:19]} 18. Qh4 {[%emt 0:04:46]} Nxd5 {[%emt 0:00:33]} 19. cxd5 {[%emt 0:00:45]} Bf6 {[%emt 0:10:27]} 20. Bg5 {[%emt 0:00:51]} Bxg5 {[%emt 0:01:50]} ({Better is} 20... e4 $19 21. Bxf6 exf3) 21. Nxg5 {[%emt 0:00:16]} Qe7 {[%emt 0:01:17]} 22. Qg4 {[%emt 0:02:03]} h5 {[%emt 0:03:38]} ({Black should try} 22... Nc5 $19 23. Ne6 Nxe6 24. dxe6 Rc8) 23. Qe6+ {[%emt 0:02:34]} Qxe6 {[%emt 0:01:26]} 24. dxe6 {[%emt 0:05:37]} Nc7 {[%emt 0:03:40]} 25. Bxb7 {[%emt 0:02:33]} Rb8 {[%emt 0:01:39]} ({And not} 25... Nxe6 26. Bd5 $16) 26. Bc6 {[%emt 0:03:06]} Rxb2 {[%emt 0:01:02]} 27. e7 {[%emt 0:02:49]} Rfb8 {[%emt 0:00:05]} 28. Ne6 {[%emt 0:09:31]} Ne8 {[%emt 0:02:10]} (28... Nxe6 $17 29. e8=Q+ Rxe8 30. Bxe8 Kg7) 29. Nd8 $1 {[%emt 0:01:23]} Nf6 {[%emt 0:02:15]} 30. Kg2 {[%emt 0:07:35]} Rd2 {[%emt 0:01:02] [#]} 31. Re1 {[%emt 0:01:19]} (31. g4 $1 $11 {[%mdl 512] was the only way to keep the balance.} hxg4 32. hxg4) 31... Rbb2 {[%emt 0:00:44]} 32. Rf1 {[%emt 0:04:13]} d5 {[%emt 0:01:16]} 33. e8=Q+ {[%emt 0:05:45]} Nxe8 {[%emt 0:00:07]} 34. Bxe8 {[%emt 0:00:05]} Rb8 {[%emt 0:00:12]} 35. Bxg6 {[%emt 0:00:05]} Rxd8 {[%emt 0:00:05]} 36. Bxh5 {[%emt 0:00:28]} e4 {[%emt 0:00:47]} 37. Re1 {[%emt 0:00:43]} Rb8 {[%emt 0:00:42]} 38. Re2 {[%emt 0:01:45]} Rd3 {[%emt 0:02:03]} 39. a4 {[%emt 0:04:00]} Ra3 {[%emt 0:01:06]} 40. Rd2 {[%emt 0:00:00]} Rd8 {[%emt 0:00:00]} 41. Rd4 {[%emt 0:01:41]} Kg7 {[%emt 0:01:59]} 42. Bd1 {[%emt 0:01:02]} Kf6 {[%emt 0:00:29]} 43. f4 {[%emt 0:02:21]} Ke6 {[%emt 0:03:25]} 44. h4 {[%emt 0:04:16]} Kd6 {[%emt 0:04:42]} 45. h5 {[%emt 0:04:37]} Kc5 {[%emt 0:01:21]} 46. Rd2 {[%emt 0:00:30]} d4 {[%emt 0:01:20]} 47. g4 {[%emt 0:01:55]} d3 {[%emt 0:01:27]} 48. g5 {[%emt 0:07:54]} Kd4 {[%emt 0:06:32]} 49. Kf1 {[%emt 0:04:20]} e3 {[%emt 0:02:08]} 50. Rb2 {[%emt 0:00:46]} Ra1 {[%emt 0:02:14]} 51. Ke1 {[%emt 0:01:27]} Kc3 {[%emt 0:01:14]} 52. Rb3+ {[%emt 0:00:13]} Kc4 {[%emt 0:00:20]} 53. Rb2 {[%emt 0:00:08]} d2+ {[%emt 0:00:40]} 54. Ke2 {[%emt 0:00:34]} Rxd1 {[%emt 0:00:17]} 55. Rxd2 {[%emt 0:00:45]} exd2 {[%emt 0:00:28]} 56. Kxd1 {[%emt 0:00:06]} Kd3 {[%emt 0:00:11]} 0-1

[Event "FIDE WCCC G12 2018"]
[Site "Santiago de Compostela"]
[Date "2018.11.14"]
[Round "10"]
[White "Wisniowski, Natalie"]
[Black "Wang, Ellen"]
[Result "0-1"]
[ECO "A45"]
[WhiteElo "1504"]
[BlackElo "1711"]
[Annotator "NA RC"]
[PlyCount "124"]
[EventDate "2018.11.04"]
[EventType "swiss"]
[EventCountry "ESP"]
[SourceTitle "playchess.com"]
[Source "ChessBase"]
[SourceQuality "1"]
[TimeControl "40/5400+30:1800+30"]

1. d4 {[%emt 0:00:00]} Nf6 {[%emt 0:00:00]} 2. Bf4 {[%emt 0:00:00]} g6 {[%emt 0:00:00]} 3. Nc3 {[%emt 0:00:02]} d5 {[%emt 0:00:00]} 4. e3 {[%emt 0:00:50]} Bg7 {[%emt 0:00:00]} 5. h4 {[%emt 0:01:17]} a6 {[%emt 0:03:04]} 6. a4 {[%emt 0:04:54]} c5 {[%emt 0:01:49]} 7. Nf3 {[%emt 0:03:55]} Nc6 {[%emt 0:01:58]} 8. Ne5 {[%emt 0:05:58]} Qb6 {[%emt 0:07:14]} 9. Nxc6 {[%emt 0:03:37]} Qxb2 {[%emt 0:07:00]} 10. Kd2 {[%emt 0:28:39]} Qb6 {[%emt 0:06:42]} 11. Ne5 {[%emt 0:05:27]} cxd4 {[%emt 0:01:15]} 12. Ne2 {[%emt 0:07:15]} Ne4+ {[%emt 0:02:17]} 13. Kc1 {[%emt 0:03:39]} Nxf2 {[%emt 0:03:08]} 14. Qxd4 {[%emt 0:04:34]} Qxd4 {[%emt 0:00:36]} 15. exd4 {[%emt 0:00:33]} Nxh1 {[%emt 0:00:24]} 16. Be3 {[%emt 0:02:32]} Bf5 {[%emt 0:05:35]} 17. Rb1 {[%emt 0:03:34]} Rc8 {[%emt 0:03:44]} 18. Rb2 {[%emt 0:01:41]} O-O 19. Kd2 {[%emt 0:03:19]} Be4 {[%emt 0:06:10]} 20. Nd3 {[%emt 0:02:03]} Bxd3 {[%emt 0:06:16]} 21. cxd3 {[%emt 0:02:07]} e5 {[%emt 0:01:15]} 22. Ke1 {[%emt 0:05:00]} exd4 {[%emt 0:00:58]} 23. Bf4 {[%emt 0:04:39]} Rfe8 {[%emt 0:01:47]} 24. g3 {[%emt 0:00:16]} Be5 {[%emt 0:00:12]} 25. Bxe5 {[%emt 0:01:13]} Rxe5 {[%emt 0:00:02]} 26. Kd2 Nf2 {[%emt 0:03:31]} 27. Rxb7 {[%emt 0:01:11]} Rce8 {[%emt 0:01:06]} 28. Nxd4 {[%emt 0:00:46]} Re1 {[%emt 0:00:53]} 29. Be2 {[%emt 0:00:14]} Ra1 {[%emt 0:00:17]} 30. Nc2 {[%emt 0:02:25]} Ra2 {[%emt 0:02:09]} 31. Rc7 {[%emt 0:00:16]} d4 {[%emt 0:01:34]} 32. Bf3 {[%emt 0:00:22]} Re5 {[%emt 0:04:27]} 33. Rc4 {[%emt 0:01:30]} Rf5 {[%emt 0:01:14]} 34. Bc6 {[%emt 0:00:19]} Ng4 {[%emt 0:00:26]} 35. Be4 {[%emt 0:01:42]} Rf2+ {[%emt 0:00:14]} 36. Kc1 {[%emt 0:00:08]} Ne3 {[%emt 0:00:16]} 37. Rc8+ {[%emt 0:01:03]} Kg7 {[%emt 0:00:06]} 38. Kb1 {[%emt 0:00:16]} Raxc2 {[%emt 0:00:09]} 39. Rxc2 {[%emt 0:00:00]} Rxc2 {[%emt 0:00:08]} 40. Bb7 {[%emt 0:00:00]} Rc7 {[%emt 0:00:00]} 41. Bxa6 {[%emt 0:01:38]} Ra7 {[%emt 0:00:52]} 42. Bb5 {[%emt 0:00:22]} Nd5 {[%emt 0:00:05]} 43. Kb2 {[%emt 0:00:38]} Nc3 {[%emt 0:00:08]} 44. Kb3 {[%emt 0:00:24]} Kf6 {[%emt 0:00:07]} 45. Kc4 {[%emt 0:00:23]} Ke5 {[%emt 0:00:11]} 46. g4 {[%emt 0:00:32]} Nxa4 {[%emt 0:00:05]} 47. h5 {[%emt 0:00:18]} Nb6+ {[%emt 0:00:12]} 48. Kb4 {[%emt 0:00:15]} Nd5+ {[%emt 0:00:07]} 49. Kb3 {[%emt 0:00:18]} Rb7 {[%emt 0:00:08]} 50. Kc4 {[%emt 0:00:13]} Ne3+ {[%emt 0:00:06]} 51. Kc5 {[%emt 0:00:15]} Nxg4 {[%emt 0:00:06]} 52. hxg6 {[%emt 0:00:09]} fxg6 {[%emt 0:00:06]} 53. Bc4 {[%emt 0:00:12]} h5 {[%emt 0:00:08]} 54. Ba2 {[%emt 0:00:22]} h4 {[%emt 0:00:06]} 55. Bd5 {[%emt 0:00:14]} Rc7+ {[%emt 0:00:06]} 56. Kb4 {[%emt 0:00:07]} Kxd5 {[%emt 0:00:05]} 57. Ka4 {[%emt 0:00:12]} h3 {[%emt 0:00:06]} 58. Ka5 {[%emt 0:00:06]} h2 {[%emt 0:00:05]} 59. Kb6 {[%emt 0:00:07]} h1=Q {[%emt 0:00:09]} 60. Kxc7 {[%emt 0:00:04]} Qh7+ {[%emt 0:00:07]} 61. Kb8 {[%emt 0:00:13]} Kc6 {[%emt 0:00:04]} 62. Ka8 {[%emt 0:00:53]} Qb7# {[%emt 0:00:08]} 0-1

[Event "FIDE WCCC G12 2018"]
[Site "Santiago de Compostela"]
[Date "2018.11.14"]
[Round "10"]
[White "Cao, Joy"]
[Black "Rueda Nessi, Juana"]
[Result "1-0"]
[ECO "C16"]
[WhiteElo "1411"]
[BlackElo "1642"]
[Annotator "NA RC"]
[PlyCount "99"]
[EventDate "2018.11.04"]
[EventType "swiss"]
[EventCountry "ESP"]
[SourceTitle "playchess.com"]
[Source "ChessBase"]
[SourceQuality "1"]
[TimeControl "40/5400+30:1800+30"]

1. e4 {[%emt 0:00:00]} e6 {[%emt 0:00:00]} 2. d4 {[%emt 0:00:00]} d5 {[%emt 0:00:00]} 3. Nc3 {[%emt 0:00:00]} Bb4 {[%emt 0:00:00]} 4. e5 {[%emt 0:00:00]} b6 {[%emt 0:00:00]} 5. f4 {[%emt 0:04:06]} Ba6 {[%emt 0:01:10]} 6. Bxa6 Nxa6 {[%emt 0:00:14]} 7. Bd2 {[%emt 0:15:38]} Nh6 {[%emt 0:02:14]} 8. Qe2 {[%emt 0:02:11]} Nb8 {[%emt 0:00:42]} 9. Qb5+ {[%emt 0:02:41]} Qd7 {[%emt 0:09:53]} 10. Qxb4 {[%emt 0:01:20]} Nc6 {[%emt 0:00:43]} 11. Qa4 {[%emt 0:00:30]} Nf5 {[%emt 0:02:00]} 12. Nf3 {[%emt 0:01:29]} Ncxd4 {[%emt 0:06:40]} 13. Qxd7+ {[%emt 0:05:07]} Kxd7 {[%emt 0:00:08]} 14. Nxd4 {[%emt 0:02:01]} Nxd4 {[%emt 0:00:02]} 15. O-O-O {[%emt 0:01:53]} c5 {[%emt 0:08:42]} 16. Be3 {[%emt 0:04:25]} Nf5 {[%emt 0:07:40]} 17. Bf2 {[%emt 0:00:58]} Rab8 {[%emt 0:06:40]} 18. g4 {[%emt 0:04:15]} Ne7 {[%emt 0:00:33]} 19. Bh4 {[%emt 0:11:32]} b5 {[%emt 0:06:09]} 20. Bxe7 {[%emt 0:07:12]} Kxe7 {[%emt 0:00:03]} 21. f5 {[%emt 0:00:51]} b4 {[%emt 0:01:21]} 22. Ne2 {[%emt 0:01:26]} a5 {[%emt 0:01:17]} 23. Rhf1 {[%emt 0:04:28]} Rhf8 {[%emt 0:06:25]} 24. Rf3 {[%emt 0:04:25]} a4 {[%emt 0:03:10]} 25. Rh3 {[%emt 0:03:52]} h6 {[%emt 0:02:21]} 26. Nf4 {[%emt 0:03:04]} Kd7 {[%emt 0:03:42]} 27. Nh5 {[%emt 0:03:19]} Rg8 {[%emt 0:02:27]} 28. f6 {[%emt 0:01:39]} g6 {[%emt 0:01:05]} 29. Nf4 {[%emt 0:00:38]} Rh8 {[%emt 0:02:30]} 30. Nd3 {[%emt 0:03:01]} Kc6 {[%emt 0:01:33]} 31. b3 {[%emt 0:00:31]} axb3 {[%emt 0:04:04]} 32. axb3 {[%emt 0:00:06]} c4 {[%emt 0:05:27]} 33. bxc4 {[%emt 0:05:13]} dxc4 {[%emt 0:00:18]} 34. Nb2 {[%emt 0:01:19]} c3 {[%emt 0:08:14]} 35. Rd6+ {[%emt 0:00:46]} Kc7 {[%emt 0:00:55]} 36. Nd3 {[%emt 0:00:24]} Ra8 {[%emt 0:05:26]} 37. Kd1 {[%emt 0:04:45]} Ra1+ {[%emt 0:01:49]} 38. Ke2 {[%emt 0:00:06]} Rb1 {[%emt 0:02:31]} 39. Rd4 {[%emt 0:02:50]} Rb8 {[%emt 0:00:46]} 40. Rc4+ {[%emt 0:00:00]} Kd7 {[%emt 0:00:00]} 41. Rxh6 {[%emt 0:05:40]} Rc8 {[%emt 0:20:10]} 42. Rxb4 {[%emt 0:01:19]} Rxb4 {[%emt 0:00:12]} 43. Nxb4 {[%emt 0:00:06]} Rc4 {[%emt 0:02:43]} 44. Nd3 {[%emt 0:06:27]} Rxg4 {[%emt 0:02:02]} 45. Kf3 {[%emt 0:00:37]} Rd4 {[%emt 0:01:46]} 46. Ke3 {[%emt 0:03:46]} Rg4 {[%emt 0:01:46]} 47. Rh7 {[%emt 0:01:20]} Rg2 {[%emt 0:01:07]} 48. Rxf7+ {[%emt 0:01:49]} Kd8 {[%emt 0:01:03]} 49. Rf8+ {[%emt 0:00:23]} Kd7 {[%emt 0:00:17]} 50. Rh8 {[%emt 0:02:33]} 1-0

[Event "FIDE WCCC G12 2018"]
[Site "Santiago de Compostela"]
[Date "2018.11.15"]
[Round "11"]
[White "Omonova, Umida"]
[Black "Van Foreest, Machteld"]
[Result "1/2-1/2"]
[ECO "B48"]
[WhiteElo "1854"]
[BlackElo "2003"]
[Annotator "NA"]
[PlyCount "104"]
[EventDate "2018.11.04"]
[EventType "swiss"]
[EventCountry "ESP"]
[SourceTitle "playchess.com"]
[Source "ChessBase"]
[SourceQuality "1"]
[TimeControl "40/5400+30:1800+30"]

{[%evp 9,97,30,38,29,50,41,31,21,8,12,16,-6,0,-24,32767,32767,32767,32767,32767,32767,32767,32767,32767,32767,32767,32767,32767,32767,32767,32767,32767,32767,32767,32767,0,0,0,0,32767,0,0,0,9,0,0,32767,32767,0,32767,32767,0,0,0,0,32767,32767,0,0,32767,32767,32767,0,0,0,0,0,0,32767,32767,0,32767,32767,32767,0,0,32767,32767,0,0,32767,0,32767,32767,32767,32767,0,32767,0,32767,0]} 1. e4 {[%emt 0:00:20]} c5 {[%emt 0:00:00]} 2. Nf3 {[%emt 0:00:19]} e6 {[%emt 0:00:02]} 3. d4 {[%emt 0:00:28]} cxd4 {[%emt 0:00:23]} 4. Nxd4 {[%emt 0:00:29]} Nc6 {[%emt 0:00:21]} 5. Nc3 {[%emt 0:04:30]} Qc7 {[%emt 0:00:29]} 6. Be3 {[%emt 0:07:40]} a6 {[%emt 0:00:53]} 7. a3 {[%emt 0:00:08]} b5 {[%emt 0:03:05]} 8. Be2 {[%emt 0:03:03]} Bb7 {[%emt 0:02:14]} 9. O-O {[%emt 0:01:09]} Nf6 {[%emt 0:01:18]} 10. Nxc6 {[%emt 0:05:35]} Bxc6 {[%emt 0:03:07] LiveBook: 15 Games} 11. Bf3 {[%emt 0:00:56] B49: Sicilian: Taimanov: 5 Nc3 Qc7 6 Be3 a6 7 Be2} (11. Bd3 Be7 12. f4 d6 13. Qf3 Qb7 14. Rae1 O-O 15. Bd4 b4 16. axb4 Qxb4 17. Ne2 d5 18. e5 Ne4 {½-½ (44) Karjakin,S (2779)-Kurnosov,I (2663) Astana 2012}) 11... Bd6 {[%emt 0:11:03]} 12. g3 {[%emt 0:00:17]} Be5 {[%emt 0:00:49]} 13. Bd4 {[%emt 0:00:42] [#]} Rd8 $146 {[%emt 0:03:58]} ({Predecessor:} 13... h5 14. Re1 Bxd4 15. Qxd4 e5 16. Nd5 Bxd5 17. exd5 d6 18. Qd3 h4 {0-1 (33) Petrov,V (2311)-Perunovic,M (2624) Skopje 2015}) 14. Re1 {[%emt 0:02:46]} O-O {[%emt 0:03:36]} 15. Bg2 {[%emt 0:01:11]} d5 {[%emt 0:13:44]} 16. Bxe5 {[%emt 0:07:25]} Qxe5 {[%emt 0:02:29]} 17. exd5 {[%emt 0:00:19]} Qc7 {[%emt 0:02:04]} 18. Qe2 {[%emt 0:01:14]} exd5 {[%emt 0:08:02]} 19. Rad1 {[%emt 0:02:20]} d4 {[%emt 0:16:29]} 20. Ne4 {[%emt 0:01:25]} Nxe4 {[%emt 0:07:24]} 21. Bxe4 {[%emt 0:01:00]} Rfe8 {[%emt 0:03:19]} 22. Qd3 {[%emt 0:00:56]} Bxe4 {[%emt 0:01:38]} 23. Rxe4 {[%emt 0:00:03]} Rxe4 {[%emt 0:00:05]} 24. Qxe4 {[%emt 0:00:16]} h6 {[%emt 0:01:06]} 25. Re1 {[%emt 0:02:09]} Qc4 {[%emt 0:00:50]} 26. Qf5 {[%emt 0:02:37]} b4 {[%emt 0:04:20]} 27. b3 {[%emt 0:04:05]} Qc8 {[%emt 0:01:56]} 28. Qxc8 {[%emt 0:02:47]} Rxc8 {[%emt 0:00:05]} 29. axb4 {[%emt 0:00:11]} Rxc2 {[%emt 0:01:10]} 30. Rd1 {[%emt 0:00:09]} Rc3 {[%emt 0:02:11]} 31. Rxd4 {[%emt 0:02:08]} Rxb3 {[%emt 0:00:23]} 32. Kg2 {[%emt 0:00:37]} Kf8 {[%emt 0:01:23]} 33. Rd6 {[%emt 0:01:35]} Rxb4 {[%emt 0:00:18]} 34. Rxa6 {[%emt 0:00:11]} Rb2 {[%emt 0:00:31]} 35. Ra8+ {[%emt 0:00:12]} Ke7 {[%emt 0:00:03]} 36. Ra7+ {[%emt 0:00:06]} Ke6 {[%emt 0:00:35]} 37. Ra6+ {[%emt 0:00:12]} Ke5 {[%emt 0:00:09]} 38. Ra5+ {[%emt 0:00:13]} Ke6 {[%emt 0:00:03]} 39. Ra6+ {[%emt 0:00:08]} Ke5 {[%emt 0:00:02]} 40. h4 {[%emt 0:00:00]} Kf5 {[%emt 0:00:00]} 41. Ra4 {[%emt 0:00:32]} h5 {[%emt 0:04:57]} 42. Rf4+ {[%emt 0:01:34]} Ke6 {[%emt 0:00:16]} 43. Kh3 {[%emt 0:00:16]} g6 {[%emt 0:00:08]} 44. f3 {[%emt 0:00:59]} Ra2 {[%emt 0:00:36]} 45. g4 {[%emt 0:01:40]} hxg4+ {[%emt 0:00:15]} 46. Kxg4 {[%emt 0:01:24]} Rg2+ {[%emt 0:00:51]} 47. Kh3 {[%emt 0:04:16]} Ra2 {[%emt 0:00:30]} 48. Kg3 {[%emt 0:01:37]} Ra1 {[%emt 0:00:53]} 49. Rb4 $11 {[%emt 0:00:11]} Kf5 {[%emt 0:00:15]} 50. Rb5+ {[%emt 0:00:09]} Kf6 {[%emt 0:00:03]} 51. Rb6+ {[%emt 0:00:06]} Kf5 {[%emt 0:00:04]} 52. Rb5+ {[%emt 0:00:13]} Kf6 {[%emt 0:00:04]} 1/2-1/2

[Event "FIDE WCCC G12 2018"]
[Site "Santiago de Compostela"]
[Date "2018.11.15"]
[Round "11"]
[White "Karmanova, Olga Dm."]
[Black "Minaeva, Juliana"]
[Result "1-0"]
[ECO "A20"]
[WhiteElo "1819"]
[BlackElo "1608"]
[Annotator "NA"]
[PlyCount "47"]
[EventDate "2018.11.04"]
[EventType "swiss"]
[EventCountry "ESP"]
[SourceTitle "playchess.com"]
[Source "ChessBase"]
[SourceQuality "1"]
[TimeControl "40/5400+30:1800+30"]

{[%evp 8,37,25,32767,32767,8,20,8,24,16,44,43,32,62,45,59,100,47,148,32767,32767,32767,32767,32767,222,32767,32767,32767,150,57,68,0]} 1. c4 {[%emt 0:00:00]} e5 {[%emt 0:00:00]} 2. g3 {[%emt 0:00:00]} Nf6 {[%emt 0:00:25]} 3. Bg2 {[%emt 0:00:02]} Bc5 {[%emt 0:00:31]} 4. Nc3 {[%emt 0:02:25]} d6 {[%emt 0:00:56]} 5. e3 {[%emt 0:00:30]} Nc6 {[%emt 0:01:18]} 6. Nge2 {[%emt 0:02:33]} O-O {[%emt 0:04:14]} 7. O-O {[%emt 0:03:54]} Bf5 {[%emt 0:02:01]} 8. d4 {[%emt 0:03:02]} exd4 {[%emt 0:01:27]} 9. exd4 {[%emt 0:00:32]} Bb6 {[%emt 0:01:19]} 10. h3 {[%emt 0:02:01] A25: English Opening vs King's Indian with ...Nc6 but without early d3} Re8 {[%emt 0:03:14] LiveBook: 3 Games} 11. Be3 {[%emt 0:01:18]} (11. g4 Bg6 12. Bg5 h6 13. Bh4 Bh7 14. f4 d5 15. c5 Ba5 16. Nxd5 Nxd5 17. Bxd8 {1-0 (28) Liu,Z (2267)-Zhang,F (2248) Daqing 2018}) 11... Qd7 {[%emt 0:04:38]} 12. Kh2 {[%emt 0:01:06]} Rad8 $146 {[%emt 0:08:12]} (12... h6 $14) ({Predecessor:} 12... Rab8 13. a3 a5 14. c5 dxc5 15. dxc5 {½-½ (33) Hidalgo Garcia,A (1772)-Bustos Bernardo,S (1917) Salobrena 2015}) 13. a3 {[%emt 0:02:30]} a6 {[%emt 0:01:15]} 14. Bg5 {[%emt 0:10:27]} Qe7 {[%emt 0:09:29]} 15. Re1 {[%emt 0:12:38]} Qf8 {[%emt 0:13:10]} 16. Bxf6 {[%emt 0:03:38]} gxf6 {[%emt 0:00:23]} 17. g4 {[%emt 0:07:31]} Bg6 {[%emt 0:01:31]} 18. Bxc6 {[%emt 0:01:33]} (18. Nd5 $16) 18... bxc6 {[%emt 0:00:25]} 19. Qa4 $11 {[%emt 0:00:23]} (19. h4 $14) 19... c5 {[%emt 0:01:54]} 20. d5 {[%emt 0:00:30]} Qh6 {[%emt 0:01:58]} 21. Ng3 {[%emt 0:05:54]} Rxe1 {[%emt 0:01:50]} 22. Rxe1 {[%emt 0:00:02]} Qf4 {[%emt 0:01:46]} 23. Kg2 {[%emt 0:00:45]} Bd3 {[%emt 0:02:20]} 24. Re8+ {[%emt 0:00:21]} 1-0